[Event "Early-Titled-Tuesday-Blitz-May-14-2024"]
[Site "Chess.com"]
[Date "2024.05.14"]
[Round "3"]
[White "dontcatchmeifyoucant"]
[Black "ReadySkate"]
[Result "0-1"]
[WhiteElo "2447"]
[BlackElo "2712"]
[TimeControl "180+1"]
[EndTime "8:28:42 PDT"]
[Termination "ReadySkate won by resignation"]

1. e4 {[%clk 0:03:00.9]} 1... c5 {[%clk 0:02:58.4]} 2. Nf3 {[%clk 0:03:00.2]}
2... e6 {[%clk 0:02:58.8]} 3. d4 {[%clk 0:03:00.1]} 3... cxd4 {[%clk 0:02:59.7]}
4. Nxd4 {[%clk 0:03:00.4]} 4... Nf6 {[%clk 0:03:00.3]} 5. Nc3 {[%clk 0:02:59.3]}
5... Nc6 {[%clk 0:03:00.8]} 6. Ndb5 {[%clk 0:02:44.9]} 6... Bc5 {[%clk
0:02:57.1]} 7. Nd6+ {[%clk 0:02:40.3]} 7... Ke7 {[%clk 0:02:57]} 8. Bf4 {[%clk
0:02:40.9]} 8... e5 {[%clk 0:02:56.8]} 9. Nf5+ {[%clk 0:02:40.8]} 9... Kf8
{[%clk 0:02:56.7]} 10. Be3 {[%clk 0:02:38.6]} 10... Bb4 {[%clk 0:02:52.1]} 11.
Qd3 {[%clk 0:01:29.5]} 11... d5 {[%clk 0:02:43.4]} 12. exd5 {[%clk 0:01:28.8]}
12... Qxd5 {[%clk 0:02:41.9]} 13. Ng3 {[%clk 0:01:17.8]} 13... Be6 {[%clk
0:02:36.2]} 14. a3 {[%clk 0:01:05]} 14... Qxd3 {[%clk 0:02:28.3]} 15. Bxd3
{[%clk 0:01:03.4]} 15... Be7 {[%clk 0:02:21.8]} 16. O-O-O {[%clk 0:01:01.9]}
16... h5 {[%clk 0:02:17.5]} 17. Nf5 {[%clk 0:01:01.1]} 17... Bxf5 {[%clk
0:02:09.4]} 18. Bxf5 {[%clk 0:01:02]} 18... g6 {[%clk 0:02:10]} 19. Bd3 {[%clk
0:01:01]} 19... Ng4 {[%clk 0:02:09.6]} 20. Be4 {[%clk 0:00:52.1]} 20... Nxe3
{[%clk 0:02:04]} 21. fxe3 {[%clk 0:00:51.7]} 21... Bg5 {[%clk 0:02:04.3]} 22.
Rhe1 {[%clk 0:00:50.2]} 22... Rd8 {[%clk 0:01:59.8]} 23. Rxd8+ {[%clk
0:00:41.8]} 23... Nxd8 {[%clk 0:02:00.1]} 24. Nb5 {[%clk 0:00:42.5]} 24... a6
{[%clk 0:01:58.3]} 25. Nd6 {[%clk 0:00:41.3]} 25... b5 {[%clk 0:01:55.3]} 26. c4
{[%clk 0:00:37.7]} 26... Ke7 {[%clk 0:01:53.7]} 27. c5 {[%clk 0:00:37.1]} 27...
Ne6 {[%clk 0:01:32.5]} 28. b4 {[%clk 0:00:37.3]} 28... h4 {[%clk 0:01:31.7]} 29.
h3 {[%clk 0:00:34.5]} 29... Rb8 {[%clk 0:01:21.6]} 30. Kd2 {[%clk 0:00:33.2]}
30... a5 {[%clk 0:01:20.6]} 31. Ra1 {[%clk 0:00:27.4]} 31... Nc7 {[%clk
0:01:20.2]} 32. Bd3 {[%clk 0:00:18.4]} 32... Nd5 {[%clk 0:01:16.2]} 33. Nxb5
{[%clk 0:00:15.7]} 33... Nxe3 {[%clk 0:01:10.5]} 34. Kc3 {[%clk 0:00:15.4]}
34... e4 {[%clk 0:01:07.3]} 35. Be2 {[%clk 0:00:13.6]} 35... Bf6+ {[%clk
0:01:07]} 36. Nd4 {[%clk 0:00:13.9]} 36... Rd8 {[%clk 0:01:07.6]} 0-1

[Event "Early-Titled-Tuesday-Blitz-May-14-2024"]
[Site "Chess.com"]
[Date "2024.05.14"]
[Round "3"]
[White "mistrzemi"]
[Black "PonyQueen07"]
[Result "1-0"]
[WhiteElo "2439"]
[BlackElo "2130"]
[TimeControl "180+1"]
[EndTime "8:28:44 PDT"]
[Termination "mistrzemi won by checkmate"]

1. e4 {[%clk 0:02:52.9]} 1... c5 {[%clk 0:02:59.8]} 2. Nf3 {[%clk 0:02:52.8]}
2... Nc6 {[%clk 0:02:59.6]} 3. Bb5 {[%clk 0:02:52.3]} 3... e5 {[%clk 0:02:59.4]}
4. O-O {[%clk 0:02:50.8]} 4... Bd6 {[%clk 0:02:58.2]} 5. Re1 {[%clk 0:02:50.7]}
5... Nge7 {[%clk 0:02:55.5]} 6. Nc3 {[%clk 0:02:47.6]} 6... Bc7 {[%clk
0:02:52.2]} 7. a4 {[%clk 0:02:45.1]} 7... O-O {[%clk 0:02:50.5]} 8. d3 {[%clk
0:02:41.8]} 8... h6 {[%clk 0:02:44.9]} 9. Bc4 {[%clk 0:02:40.6]} 9... d6 {[%clk
0:02:41.2]} 10. Nd2 {[%clk 0:02:36.9]} 10... Be6 {[%clk 0:02:33.1]} 11. Nf1
{[%clk 0:02:33.8]} 11... Bxc4 {[%clk 0:02:26.4]} 12. dxc4 {[%clk 0:02:34.7]}
12... Ba5 {[%clk 0:02:18.5]} 13. Bd2 {[%clk 0:02:30.7]} 13... Bxc3 {[%clk
0:02:17.9]} 14. Bxc3 {[%clk 0:02:30.2]} 14... Ng6 {[%clk 0:02:04.6]} 15. Ne3
{[%clk 0:02:27.3]} 15... Nd4 {[%clk 0:01:44.7]} 16. Bd2 {[%clk 0:02:23.5]} 16...
Nf4 {[%clk 0:01:32.9]} 17. c3 {[%clk 0:02:14.8]} 17... Nde6 {[%clk 0:01:22.6]}
18. Nd5 {[%clk 0:02:14]} 18... Nxd5 {[%clk 0:00:57.9]} 19. exd5 {[%clk
0:02:14.9]} 19... Ng5 {[%clk 0:00:47.1]} 20. f4 {[%clk 0:02:14.5]} 20... exf4
{[%clk 0:00:44.7]} 21. Bxf4 {[%clk 0:02:15.4]} 21... Qf6 {[%clk 0:00:41.7]} 22.
Qd2 {[%clk 0:02:08.8]} 22... Rfe8 {[%clk 0:00:39.9]} 23. Bxg5 {[%clk 0:02:05.3]}
23... Qxg5 {[%clk 0:00:26]} 24. Qxg5 {[%clk 0:02:01.4]} 24... hxg5 {[%clk
0:00:26.9]} 25. Kf2 {[%clk 0:02:02.2]} 25... f5 {[%clk 0:00:23.2]} 26. b4 {[%clk
0:02:00.3]} 26... b6 {[%clk 0:00:17.8]} 27. bxc5 {[%clk 0:02:00.5]} 27... bxc5
{[%clk 0:00:17.7]} 28. Rab1 {[%clk 0:01:58.4]} 28... Rxe1 {[%clk 0:00:02.5]} 29.
Kxe1 {[%clk 0:01:59.3]} 29... Re8+ {[%clk 0:00:01.8]} 30. Kd2 {[%clk 0:01:59.9]}
30... Re7 {[%clk 0:00:01.8]} 31. Rb8+ {[%clk 0:01:58.3]} 31... Kf7 {[%clk
0:00:02.1]} 32. Rd8 {[%clk 0:01:58.3]} 32... Kf6 {[%clk 0:00:00.2]} 33. Rxd6+
{[%clk 0:01:58.3]} 33... Ke5 {[%clk 0:00:00.8]} 34. Rc6 {[%clk 0:01:53.8]} 34...
f4 {[%clk 0:00:01.1]} 35. Rxc5 {[%clk 0:01:53.6]} 35... g4 {[%clk 0:00:01]} 36.
Rc8 {[%clk 0:01:50.7]} 36... f3 {[%clk 0:00:01.2]} 37. gxf3 {[%clk 0:01:51.2]}
37... gxf3 {[%clk 0:00:01.4]} 38. Rf8 {[%clk 0:01:51.4]} 38... Ke4 {[%clk
0:00:01.8]} 39. d6 {[%clk 0:01:50.8]} 39... Rd7 {[%clk 0:00:02]} 40. c5 {[%clk
0:01:51.3]} 40... g5 {[%clk 0:00:02]} 41. h3 {[%clk 0:01:49.2]} 41... a6 {[%clk
0:00:01.3]} 42. Rf6 {[%clk 0:01:44.2]} 42... Kd5 {[%clk 0:00:01.3]} 43. Rf5+
{[%clk 0:01:44.2]} 43... Kc6 {[%clk 0:00:01.5]} 44. Rxf3 {[%clk 0:01:42]} 44...
Kxc5 {[%clk 0:00:01.6]} 45. Rd3 {[%clk 0:01:42.5]} 45... Rxd6 {[%clk 0:00:01.6]}
46. Rxd6 {[%clk 0:01:42.4]} 46... Kxd6 {[%clk 0:00:02.5]} 47. Ke3 {[%clk
0:01:42.5]} 47... Kc5 {[%clk 0:00:02.9]} 48. Kd3 {[%clk 0:01:39.6]} 48... a5
{[%clk 0:00:02.8]} 49. c4 {[%clk 0:01:39.3]} 49... Kb4 {[%clk 0:00:03.1]} 50.
Kd4 {[%clk 0:01:39.9]} 50... Kxa4 {[%clk 0:00:03.6]} 51. c5 {[%clk 0:01:40.4]}
51... Kb3 {[%clk 0:00:04]} 52. c6 {[%clk 0:01:40.6]} 52... a4 {[%clk 0:00:04.6]}
53. c7 {[%clk 0:01:41.1]} 53... a3 {[%clk 0:00:05.4]} 54. c8=Q {[%clk
0:01:41.6]} 54... a2 {[%clk 0:00:06.1]} 55. Qc3+ {[%clk 0:01:42.2]} 55... Ka4
{[%clk 0:00:06]} 56. Qb2 {[%clk 0:01:41.9]} 56... a1=Q {[%clk 0:00:04.6]} 57.
Qxa1+ {[%clk 0:01:42.1]} 57... Kb3 {[%clk 0:00:05.5]} 58. Qb1+ {[%clk
0:01:42.5]} 58... Ka3 {[%clk 0:00:05.9]} 59. Kc4 {[%clk 0:01:42.7]} 59... Ka4
{[%clk 0:00:06.2]} 60. Qa1# {[%clk 0:01:43.5]} 1-0

[Event "Early-Titled-Tuesday-Blitz-May-14-2024"]
[Site "Chess.com"]
[Date "2024.05.14"]
[Round "3"]
[White "Yaacovn"]
[Black "chessburger_tv"]
[Result "1-0"]
[WhiteElo "2813"]
[BlackElo "2397"]
[TimeControl "180+1"]
[EndTime "8:28:47 PDT"]
[Termination "Yaacovn won by resignation"]

1. d4 {[%clk 0:02:58.8]} 1... Nf6 {[%clk 0:03:00.1]} 2. e3 {[%clk 0:02:57.5]}
2... d5 {[%clk 0:02:59.9]} 3. Bd3 {[%clk 0:02:57.4]} 3... c5 {[%clk 0:03:00.3]}
4. c3 {[%clk 0:02:57.3]} 4... Nc6 {[%clk 0:03:00.7]} 5. f4 {[%clk 0:02:45.3]}
5... g6 {[%clk 0:02:50.9]} 6. Nf3 {[%clk 0:02:41.8]} 6... Bf5 {[%clk 0:02:51.4]}
7. O-O {[%clk 0:02:35.2]} 7... Bg7 {[%clk 0:02:49]} 8. Ne5 {[%clk 0:02:29.4]}
8... O-O {[%clk 0:02:42.5]} 9. Qe2 {[%clk 0:02:15.7]} 9... Rc8 {[%clk
0:02:39.8]} 10. Nd2 {[%clk 0:02:00.5]} 10... Re8 {[%clk 0:02:30.6]} 11. Ndf3
{[%clk 0:01:59.6]} 11... Bxd3 {[%clk 0:02:28.5]} 12. Nxd3 {[%clk 0:01:59.5]}
12... Ne4 {[%clk 0:02:29.4]} 13. Bd2 {[%clk 0:01:55.4]} 13... f6 {[%clk
0:02:27.4]} 14. Nxc5 {[%clk 0:01:52]} 14... Nxc5 {[%clk 0:02:23]} 15. dxc5
{[%clk 0:01:52.9]} 15... e5 {[%clk 0:02:23.9]} 16. fxe5 {[%clk 0:01:49.3]} 16...
fxe5 {[%clk 0:02:24.8]} 17. e4 {[%clk 0:01:49.3]} 17... a5 {[%clk 0:02:02.4]}
18. Ng5 {[%clk 0:01:43.5]} 18... Qe7 {[%clk 0:01:43.8]} 19. Be3 {[%clk 0:01:34]}
19... h6 {[%clk 0:01:37.9]} 20. exd5 {[%clk 0:01:03.5]} 20... hxg5 {[%clk
0:01:26.7]} 21. dxc6 {[%clk 0:01:01.7]} 21... Rxc6 {[%clk 0:01:23.3]} 22. Qc4+
{[%clk 0:01:01.6]} 22... Qe6 {[%clk 0:01:19.8]} 23. Qxe6+ {[%clk 0:00:58.3]}
23... Rexe6 {[%clk 0:01:20.7]} 24. Rad1 {[%clk 0:00:58.1]} 24... Bf6 {[%clk
0:01:14]} 25. Rd7 {[%clk 0:00:55.5]} 25... Be7 {[%clk 0:01:12.2]} 26. b4 {[%clk
0:00:55.4]} 26... e4 {[%clk 0:00:54.6]} 27. Rxb7 {[%clk 0:00:49.9]} 27... Bf6
{[%clk 0:00:51]} 28. b5 {[%clk 0:00:48.9]} 28... Rc8 {[%clk 0:00:49.7]} 29. c4
{[%clk 0:00:48.7]} 29... Rd8 {[%clk 0:00:47.5]} 30. c6 {[%clk 0:00:48.6]} 30...
Be5 {[%clk 0:00:44.4]} 31. c7 {[%clk 0:00:47.2]} 31... Rc8 {[%clk 0:00:42.2]}
32. b6 {[%clk 0:00:47.2]} 32... Rc6 {[%clk 0:00:39.9]} 33. c5 {[%clk 0:00:47.1]}
33... g4 {[%clk 0:00:29.1]} 34. g3 {[%clk 0:00:44.2]} 34... a4 {[%clk
0:00:25.6]} 35. Kg2 {[%clk 0:00:43.9]} 35... a3 {[%clk 0:00:23.5]} 36. Rd1
{[%clk 0:00:43.7]} 36... Bf6 {[%clk 0:00:18.8]} 37. Rd6 {[%clk 0:00:39.5]} 1-0

[Event "Early-Titled-Tuesday-Blitz-May-14-2024"]
[Site "Chess.com"]
[Date "2024.05.14"]
[Round "3"]
[White "Zarinur"]
[Black "yuriydovzik"]
[Result "1-0"]
[WhiteElo "2561"]
[BlackElo "2152"]
[TimeControl "180+1"]
[EndTime "8:28:47 PDT"]
[Termination "Zarinur won on time"]

1. e4 {[%clk 0:03:00.9]} 1... c6 {[%clk 0:02:58.9]} 2. d4 {[%clk 0:03:00]} 2...
Na6 {[%clk 0:02:58.6]} 3. Nc3 {[%clk 0:02:54.4]} 3... Nc7 {[%clk 0:02:57.6]} 4.
h3 {[%clk 0:02:51.2]} 4... d5 {[%clk 0:02:52.3]} 5. e5 {[%clk 0:02:51]} 5... e6
{[%clk 0:02:45.9]} 6. Nf3 {[%clk 0:02:47.6]} 6... c5 {[%clk 0:02:43.6]} 7. Be2
{[%clk 0:02:37.6]} 7... h6 {[%clk 0:02:31.7]} 8. Be3 {[%clk 0:02:35.1]} 8... b6
{[%clk 0:02:29.5]} 9. a4 {[%clk 0:02:33.5]} 9... Ne7 {[%clk 0:02:21.8]} 10. g4
{[%clk 0:02:07.8]} 10... Nc6 {[%clk 0:02:12.9]} 11. Qd2 {[%clk 0:01:47]} 11...
Be7 {[%clk 0:02:04.2]} 12. Nb5 {[%clk 0:01:37.1]} 12... Nxb5 {[%clk 0:01:47.6]}
13. axb5 {[%clk 0:01:33.1]} 13... cxd4 {[%clk 0:01:31.8]} 14. Bxd4 {[%clk
0:01:13]} 14... Nxd4 {[%clk 0:01:26.2]} 15. Nxd4 {[%clk 0:01:13.9]} 15... Bb7
{[%clk 0:01:18.4]} 16. c3 {[%clk 0:01:00]} 16... O-O {[%clk 0:01:12.4]} 17. O-O
{[%clk 0:00:58.6]} 17... Qc7 {[%clk 0:01:06.9]} 18. f4 {[%clk 0:00:53.1]} 18...
Bc5 {[%clk 0:01:01.3]} 19. Kh2 {[%clk 0:00:47.5]} 19... Rfc8 {[%clk 0:00:51.1]}
20. Ra4 {[%clk 0:00:44.8]} 20... Bxd4 {[%clk 0:00:18.1]} 21. Qxd4 {[%clk
0:00:44.2]} 21... Qc5 {[%clk 0:00:13.2]} 22. Qxc5 {[%clk 0:00:38.6]} 22... Rxc5
{[%clk 0:00:10.1]} 23. Rfa1 {[%clk 0:00:38.4]} 23... d4 {[%clk 0:00:07.1]} 24.
Rxd4 {[%clk 0:00:37.2]} 24... Bd5 {[%clk 0:00:04.3]} 25. Rda4 {[%clk 0:00:31.3]}
1-0

[Event "Early-Titled-Tuesday-Blitz-May-14-2024"]
[Site "Chess.com"]
[Date "2024.05.14"]
[Round "3"]
[White "whitemirrorninja"]
[Black "ViktoriyaTarasova"]
[Result "1-0"]
[WhiteElo "2502"]
[BlackElo "2308"]
[TimeControl "180+1"]
[EndTime "8:28:47 PDT"]
[Termination "whitemirrorninja won on time"]

1. e4 {[%clk 0:03:00.9]} 1... e5 {[%clk 0:02:59.6]} 2. Bc4 {[%clk 0:02:57.1]}
2... Nf6 {[%clk 0:02:59]} 3. d3 {[%clk 0:02:57.5]} 3... c6 {[%clk 0:02:59.3]} 4.
Bb3 {[%clk 0:02:56.9]} 4... a5 {[%clk 0:02:58.4]} 5. c3 {[%clk 0:02:55.2]} 5...
d5 {[%clk 0:02:55.9]} 6. Nf3 {[%clk 0:02:55.2]} 6... Bd6 {[%clk 0:02:53.8]} 7.
Nbd2 {[%clk 0:02:52.6]} 7... O-O {[%clk 0:02:53.1]} 8. O-O {[%clk 0:02:52.4]}
8... h6 {[%clk 0:02:52.7]} 9. Re1 {[%clk 0:02:52.6]} 9... Re8 {[%clk 0:02:52.1]}
10. h3 {[%clk 0:02:50.4]} 10... Nbd7 {[%clk 0:02:51.9]} 11. Nf1 {[%clk
0:02:45.3]} 11... Nc5 {[%clk 0:02:51.9]} 12. Bc2 {[%clk 0:02:43.5]} 12... dxe4
{[%clk 0:02:50.9]} 13. dxe4 {[%clk 0:02:43.3]} 13... Qc7 {[%clk 0:02:42.4]} 14.
Ng3 {[%clk 0:02:40.5]} 14... Bf8 {[%clk 0:02:39]} 15. Be3 {[%clk 0:02:31.8]}
15... Rd8 {[%clk 0:02:36.6]} 16. Qc1 {[%clk 0:02:31.5]} 16... Ne6 {[%clk
0:02:29.8]} 17. a4 {[%clk 0:02:15.2]} 17... b6 {[%clk 0:02:26.2]} 18. Bb3 {[%clk
0:02:13.2]} 18... Nf4 {[%clk 0:02:24.3]} 19. Nxe5 {[%clk 0:01:54.7]} 19... Nxh3+
{[%clk 0:02:12]} 20. gxh3 {[%clk 0:01:54.8]} 20... Qxe5 {[%clk 0:02:12.7]} 21.
f4 {[%clk 0:01:55.5]} 21... Qc7 {[%clk 0:02:05.8]} 22. Bd4 {[%clk 0:01:44.3]}
22... Nd7 {[%clk 0:01:44.6]} 23. Nh5 {[%clk 0:01:24.5]} 23... g6 {[%clk
0:01:17]} 24. Qc2 {[%clk 0:01:10.2]} 24... Bc5 {[%clk 0:00:50.4]} 25. e5 {[%clk
0:01:02.1]} 25... Bxd4+ {[%clk 0:00:35.5]} 26. cxd4 {[%clk 0:01:03]} 26... Nf8
{[%clk 0:00:35.9]} 27. Nf6+ {[%clk 0:00:56]} 27... Kg7 {[%clk 0:00:25]} 28. d5
{[%clk 0:00:56.7]} 28... Bf5 {[%clk 0:00:20]} 29. Qc3 {[%clk 0:00:56.7]} 29...
Rac8 {[%clk 0:00:06.6]} 30. d6 {[%clk 0:00:56.6]} 30... Qa7 {[%clk 0:00:07.2]}
31. e6 {[%clk 0:00:56.1]} 31... b5+ {[%clk 0:00:07]} 32. Kh1 {[%clk 0:00:52]}
32... b4 {[%clk 0:00:06.3]} 33. Ne8+ {[%clk 0:00:50.7]} 1-0

[Event "Early-Titled-Tuesday-Blitz-May-14-2024"]
[Site "Chess.com"]
[Date "2024.05.14"]
[Round "3"]
[White "Bauman_Guy"]
[Black "RojonR"]
[Result "1-0"]
[WhiteElo "2892"]
[BlackElo "2609"]
[TimeControl "180+1"]
[EndTime "8:28:49 PDT"]
[Termination "Bauman_Guy won by resignation"]

1. e4 {[%clk 0:03:00.9]} 1... c5 {[%clk 0:02:59.5]} 2. Nf3 {[%clk 0:03:00.7]}
2... Nc6 {[%clk 0:02:59.7]} 3. d4 {[%clk 0:03:01]} 3... cxd4 {[%clk 0:03:00.6]}
4. Nxd4 {[%clk 0:03:01.6]} 4... Qc7 {[%clk 0:03:01.3]} 5. Nc3 {[%clk 0:02:59.7]}
5... e6 {[%clk 0:03:01.3]} 6. Nxc6 {[%clk 0:02:59.1]} 6... bxc6 {[%clk 0:03:01]}
7. Bd3 {[%clk 0:02:57.6]} 7... d5 {[%clk 0:03:01.5]} 8. Qe2 {[%clk 0:02:57.6]}
8... Nf6 {[%clk 0:03:00.4]} 9. exd5 {[%clk 0:02:57.4]} 9... cxd5 {[%clk
0:03:00.2]} 10. Nb5 {[%clk 0:02:57.3]} 10... Qb8 {[%clk 0:02:56.8]} 11. g3
{[%clk 0:02:57.2]} 11... Bd6 {[%clk 0:02:52.4]} 12. Nxd6+ {[%clk 0:02:40.5]}
12... Qxd6 {[%clk 0:02:53.3]} 13. Bf4 {[%clk 0:02:40.8]} 13... Qe7 {[%clk
0:02:43.9]} 14. O-O {[%clk 0:02:39.8]} 14... O-O {[%clk 0:02:42.7]} 15. Rfe1
{[%clk 0:02:39.5]} 15... Bb7 {[%clk 0:02:40.7]} 16. c3 {[%clk 0:02:32.8]} 16...
Rfd8 {[%clk 0:02:16.7]} 17. Be5 {[%clk 0:02:28.5]} 17... Ne4 {[%clk 0:01:53.1]}
18. f3 {[%clk 0:02:23]} 18... Nc5 {[%clk 0:01:52.3]} 19. Bd4 {[%clk 0:02:17.7]}
19... Nxd3 {[%clk 0:01:46.6]} 20. Qxd3 {[%clk 0:02:18.6]} 20... a5 {[%clk
0:01:39.2]} 21. f4 {[%clk 0:02:12.2]} 21... a4 {[%clk 0:01:28.5]} 22. f5 {[%clk
0:02:09.3]} 22... Bc8 {[%clk 0:01:12.2]} 23. Qf3 {[%clk 0:02:02.6]} 23... f6
{[%clk 0:00:56.1]} 24. fxe6 {[%clk 0:01:59.4]} 24... Bxe6 {[%clk 0:00:57]} 25.
Re3 {[%clk 0:01:53.7]} 25... Re8 {[%clk 0:00:55.1]} 26. Rae1 {[%clk 0:01:51.6]}
26... Qd7 {[%clk 0:00:54.3]} 27. g4 {[%clk 0:01:44]} 27... h6 {[%clk 0:00:50.1]}
28. h4 {[%clk 0:01:41.8]} 28... Bxg4 {[%clk 0:00:24.1]} 29. Rxe8+ {[%clk
0:01:36.8]} 29... Rxe8 {[%clk 0:00:25]} 30. Rxe8+ {[%clk 0:01:36.8]} 30... Kf7
{[%clk 0:00:24.6]} 31. Rd8 {[%clk 0:01:28.8]} 31... Qxd8 {[%clk 0:00:17.2]} 32.
Qxg4 {[%clk 0:01:28.6]} 32... Qe7 {[%clk 0:00:16]} 33. Kf2 {[%clk 0:01:25.7]}
33... a3 {[%clk 0:00:13]} 34. b4 {[%clk 0:01:20.3]} 34... g6 {[%clk 0:00:07.6]}
35. h5 {[%clk 0:01:19.6]} 35... g5 {[%clk 0:00:03.8]} 36. Qf5 {[%clk 0:01:19.2]}
36... Qd6 {[%clk 0:00:03.8]} 37. Qg6+ {[%clk 0:01:00.2]} 37... Ke6 {[%clk
0:00:03.5]} 38. Qxf6+ {[%clk 0:01:00.1]} 1-0

[Event "Early-Titled-Tuesday-Blitz-May-14-2024"]
[Site "Chess.com"]
[Date "2024.05.14"]
[Round "3"]
[White "carloseduar100"]
[Black "Pedrada88"]
[Result "0-1"]
[WhiteElo "2222"]
[BlackElo "2572"]
[TimeControl "180+1"]
[EndTime "8:28:49 PDT"]
[Termination "Pedrada88 won by resignation"]

1. d4 {[%clk 0:02:57.2]} 1... Nf6 {[%clk 0:02:59.1]} 2. Bg5 {[%clk 0:02:57.4]}
2... Ne4 {[%clk 0:02:58.8]} 3. h4 {[%clk 0:02:57.4]} 3... c5 {[%clk 0:02:58.6]}
4. d5 {[%clk 0:02:57.5]} 4... Qb6 {[%clk 0:02:57.9]} 5. Nd2 {[%clk 0:02:57.7]}
5... Nxd2 {[%clk 0:02:56]} 6. Bxd2 {[%clk 0:02:58.2]} 6... Qxb2 {[%clk
0:02:55.1]} 7. e4 {[%clk 0:02:59.1]} 7... g6 {[%clk 0:02:50.6]} 8. Rb1 {[%clk
0:02:56.6]} 8... Qd4 {[%clk 0:02:47.2]} 9. Bd3 {[%clk 0:02:51.7]} 9... Bg7
{[%clk 0:02:39.9]} 10. Nf3 {[%clk 0:02:51.4]} 10... Qa4 {[%clk 0:02:39]} 11. h5
{[%clk 0:02:49.8]} 11... b6 {[%clk 0:02:31.6]} 12. hxg6 {[%clk 0:02:49.9]} 12...
fxg6 {[%clk 0:02:32]} 13. e5 {[%clk 0:02:49.5]} 13... Ba6 {[%clk 0:02:24.1]} 14.
Rxh7 {[%clk 0:02:33.1]} 14... Bxd3 {[%clk 0:02:23]} 15. Rxh8+ {[%clk 0:02:33.4]}
15... Bxh8 {[%clk 0:02:22.8]} 16. cxd3 {[%clk 0:02:34.1]} 16... Qxa2 {[%clk
0:02:16.7]} 17. Bc3 {[%clk 0:02:09.9]} 17... Qxd5 {[%clk 0:02:14.1]} 18. Qe2
{[%clk 0:02:05.7]} 18... Nc6 {[%clk 0:02:13]} 19. Ra1 {[%clk 0:01:54.5]} 19...
b5 {[%clk 0:02:02.6]} 20. Kf1 {[%clk 0:01:43]} 20... b4 {[%clk 0:02:02]} 21. Bb2
{[%clk 0:01:43.1]} 21... a5 {[%clk 0:02:01.5]} 22. Qe3 {[%clk 0:01:31.1]} 22...
a4 {[%clk 0:01:58]} 23. Qh6 {[%clk 0:01:28.6]} 23... Qxd3+ {[%clk 0:01:54.2]}
24. Kg1 {[%clk 0:01:25.7]} 24... O-O-O {[%clk 0:01:52.1]} 25. Rc1 {[%clk
0:01:06.2]} 25... a3 {[%clk 0:01:50.7]} 26. Ba1 {[%clk 0:01:05.9]} 26... b3
{[%clk 0:01:48.9]} 27. e6 {[%clk 0:00:36.3]} 27... Bxa1 {[%clk 0:01:44.7]} 28.
exd7+ {[%clk 0:00:36.6]} 28... Rxd7 {[%clk 0:01:36.8]} 29. Rxa1 {[%clk
0:00:37.5]} 29... b2 {[%clk 0:01:36.3]} 30. Re1 {[%clk 0:00:20.7]} 30... b1=Q
{[%clk 0:01:34.8]} 31. Qf8+ {[%clk 0:00:18.3]} 31... Rd8 {[%clk 0:01:34.6]} 32.
Qf7 {[%clk 0:00:17.7]} 32... Qbb3 {[%clk 0:01:26.9]} 33. Qg7 {[%clk 0:00:15.1]}
33... a2 {[%clk 0:01:23.6]} 34. Ne5 {[%clk 0:00:14.8]} 34... Nxe5 {[%clk
0:01:16]} 35. Qxe5 {[%clk 0:00:15.7]} 35... Qdb1 {[%clk 0:01:08.1]} 36. Qxc5+
{[%clk 0:00:15.7]} 36... Kb7 {[%clk 0:01:06.9]} 37. Qxe7+ {[%clk 0:00:12.3]}
37... Kc6 {[%clk 0:01:03.9]} 38. Qe6+ {[%clk 0:00:07.9]} 38... Qxe6 {[%clk
0:01:02.4]} 0-1

[Event "Early-Titled-Tuesday-Blitz-May-14-2024"]
[Site "Chess.com"]
[Date "2024.05.14"]
[Round "3"]
[White "MathiasWomacka"]
[Black "alvarorodriguezavila"]
[Result "1-0"]
[WhiteElo "2537"]
[BlackElo "2324"]
[TimeControl "180+1"]
[EndTime "8:28:51 PDT"]
[Termination "MathiasWomacka won by resignation"]

1. e4 {[%clk 0:03:00.9]} 1... c5 {[%clk 0:02:59.6]} 2. Nf3 {[%clk 0:02:59.7]}
2... g6 {[%clk 0:03:00.1]} 3. d4 {[%clk 0:02:58.3]} 3... cxd4 {[%clk 0:03:01]}
4. Nxd4 {[%clk 0:02:58.3]} 4... Bg7 {[%clk 0:03:01.4]} 5. c4 {[%clk 0:02:57.6]}
5... Nc6 {[%clk 0:03:02]} 6. Be3 {[%clk 0:02:57.3]} 6... Nf6 {[%clk 0:03:02.4]}
7. Nc3 {[%clk 0:02:56.7]} 7... O-O {[%clk 0:03:02.9]} 8. Be2 {[%clk 0:02:56]}
8... d6 {[%clk 0:03:03]} 9. O-O {[%clk 0:02:55.6]} 9... Nxd4 {[%clk 0:03:01.5]}
10. Bxd4 {[%clk 0:02:54.9]} 10... Bd7 {[%clk 0:03:02]} 11. Qd2 {[%clk
0:02:54.8]} 11... Bc6 {[%clk 0:03:02.1]} 12. f3 {[%clk 0:02:55]} 12... a5 {[%clk
0:03:02.4]} 13. b3 {[%clk 0:02:54.3]} 13... Nd7 {[%clk 0:02:59.8]} 14. Be3
{[%clk 0:02:54.2]} 14... Nc5 {[%clk 0:02:26.2]} 15. Rac1 {[%clk 0:02:54.4]}
15... Qb6 {[%clk 0:02:22.1]} 16. Nd5 {[%clk 0:02:37.4]} 16... Bxd5 {[%clk
0:02:21.3]} 17. cxd5 {[%clk 0:02:38.3]} 17... Rfc8 {[%clk 0:02:14.2]} 18. Rc4
{[%clk 0:02:30.4]} 18... Qd8 {[%clk 0:01:17.4]} 19. Rfc1 {[%clk 0:02:28.7]}
19... b6 {[%clk 0:01:12.6]} 20. R4c2 {[%clk 0:02:25.1]} 20... Be5 {[%clk
0:00:55.6]} 21. Bb5 {[%clk 0:02:23]} 21... Rc7 {[%clk 0:00:48.1]} 22. Qe2 {[%clk
0:02:17.5]} 22... Rac8 {[%clk 0:00:46]} 23. g3 {[%clk 0:02:00.9]} 23... e6
{[%clk 0:00:45.5]} 24. dxe6 {[%clk 0:01:59.5]} 24... fxe6 {[%clk 0:00:46.1]} 25.
f4 {[%clk 0:01:52.8]} 25... Bg7 {[%clk 0:00:46.5]} 26. Bf2 {[%clk 0:01:46.5]}
26... Qe7 {[%clk 0:00:46.4]} 27. Rd1 {[%clk 0:01:41.9]} 27... Rd8 {[%clk
0:00:30.4]} 28. Rcd2 {[%clk 0:01:36.4]} 28... Bf8 {[%clk 0:00:11.7]} 29. Kg2
{[%clk 0:01:33.7]} 29... Qf7 {[%clk 0:00:12.1]} 30. Bc4 {[%clk 0:01:24.6]} 30...
Rcc8 {[%clk 0:00:12.1]} 31. Qg4 {[%clk 0:01:19.9]} 31... Re8 {[%clk 0:00:09.7]}
32. f5 {[%clk 0:01:10.9]} 32... Qb7 {[%clk 0:00:04.9]} 33. fxe6 {[%clk
0:01:02.3]} 33... Qxe4+ {[%clk 0:00:03.7]} 34. Qxe4 {[%clk 0:01:01.1]} 34...
Nxe4 {[%clk 0:00:04.6]} 35. e7+ {[%clk 0:01:01]} 35... Kg7 {[%clk 0:00:04.4]}
36. exf8=Q+ {[%clk 0:01:00.3]} 36... Rxf8 {[%clk 0:00:05.3]} 37. Bd4+ {[%clk
0:00:58.9]} 37... Kh6 {[%clk 0:00:05.1]} 38. Re2 {[%clk 0:00:58.1]} 38... d5
{[%clk 0:00:03.7]} 39. Bxd5 {[%clk 0:00:57.1]} 1-0